[Event "*** Titled Tuesday Blitz"]
[Site "Chess.com"]
[Date "2021.03.30"]
[Round "2"]
[White "BrianEscalante"]
[Black "Eloist"]
[Result "1-0"]
[WhiteElo "2618"]
[BlackElo "2331"]
[TimeControl "180+1"]
[EndTime "10:16:47 PDT"]
[Termination "BrianEscalante won by resignation"]

1. e4 {[%clk 0:02:17.3]} 1... e6 {[%clk 0:02:58.7]} 2. d4 {[%clk 0:02:15.7]}
2... d5 {[%clk 0:02:58.7]} 3. exd5 {[%clk 0:02:16.6]} 3... exd5 {[%clk 0:02:58]}
4. Nf3 {[%clk 0:02:16.9]} 4... Bf5 {[%clk 0:02:56.5]} 5. c4 {[%clk 0:02:12.1]}
5... Bxb1 {[%clk 0:02:54.3]} 6. Rxb1 {[%clk 0:02:11]} 6... Bb4+ {[%clk
0:02:54.5]} 7. Bd2 {[%clk 0:02:10.5]} 7... Bxd2+ {[%clk 0:02:54.7]} 8. Qxd2
{[%clk 0:02:10.1]} 8... Nf6 {[%clk 0:02:54.9]} 9. Qe3+ {[%clk 0:01:22.8]} 9...
Qe7 {[%clk 0:02:49.1]} 10. Qxe7+ {[%clk 0:01:22.7]} 10... Kxe7 {[%clk
0:02:49.8]} 11. c5 {[%clk 0:01:23.3]} 11... b6 {[%clk 0:02:33.1]} 12. Bd3 {[%clk
0:01:22.4]} 12... Re8 {[%clk 0:02:02.7]} 13. Ne5 {[%clk 0:01:08.6]} 13... bxc5
{[%clk 0:01:53.8]} 14. dxc5 {[%clk 0:01:02.8]} 14... Kf8 {[%clk 0:01:50.1]} 15.
f4 {[%clk 0:01:02.9]} 15... Nfd7 {[%clk 0:01:28.3]} 16. O-O {[%clk 0:01:02.2]}
16... Nxe5 {[%clk 0:01:22.1]} 17. fxe5 {[%clk 0:01:01.9]} 17... Rxe5 {[%clk
0:01:13.6]} 18. Bb5 {[%clk 0:00:56.7]} 18... c6 {[%clk 0:00:43]} 19. Ba4 {[%clk
0:00:56.6]} 19... Nd7 {[%clk 0:00:25.9]} 20. Bxc6 {[%clk 0:00:55.5]} 20... Rd8
{[%clk 0:00:21.8]} 21. b4 {[%clk 0:00:55]} 21... Nf6 {[%clk 0:00:19.5]} 22. Bb7
{[%clk 0:00:45.9]} 22... d4 {[%clk 0:00:17.9]} 23. c6 {[%clk 0:00:37.8]} 23...
Nd5 {[%clk 0:00:17.8]} 24. Rbe1 {[%clk 0:00:28.6]} 24... Rxe1 {[%clk 0:00:16.9]}
25. Rxe1 {[%clk 0:00:29.5]} 25... d3 {[%clk 0:00:16]} 26. Rd1 {[%clk 0:00:28.6]}
26... Ne3 {[%clk 0:00:13.7]} 27. c7 {[%clk 0:00:25.3]} 27... Re8 {[%clk
0:00:11.9]} 28. Rxd3 {[%clk 0:00:25.1]} 28... Ng4 {[%clk 0:00:11]} 29. c8=Q
{[%clk 0:00:24.7]} 1-0

[Event "*** Titled Tuesday Blitz"]
[Site "Chess.com"]
[Date "2021.03.30"]
[Round "2"]
[White "ChessFunMaker"]
[Black "Hongjin"]
[Result "1-0"]
[WhiteElo "2265"]
[BlackElo "2426"]
[TimeControl "180+1"]
[EndTime "10:16:48 PDT"]
[Termination "ChessFunMaker won by resignation"]

1. c4 {[%clk 0:03:00.9]} 1... e5 {[%clk 0:02:58.3]} 2. g3 {[%clk 0:03:01.2]}
2... Nc6 {[%clk 0:02:58.5]} 3. Nc3 {[%clk 0:03:00.9]} 3... g6 {[%clk 0:02:59]}
4. Bg2 {[%clk 0:03:01]} 4... Bg7 {[%clk 0:02:59.6]} 5. e4 {[%clk 0:03:01.5]}
5... Nge7 {[%clk 0:02:59.7]} 6. Nge2 {[%clk 0:03:01.8]} 6... O-O {[%clk
0:03:00.3]} 7. O-O {[%clk 0:03:02]} 7... d6 {[%clk 0:03:00.9]} 8. d3 {[%clk
0:03:02.2]} 8... f5 {[%clk 0:03:01.4]} 9. Nd5 {[%clk 0:02:57.7]} 9... Be6 {[%clk
0:02:58.6]} 10. Be3 {[%clk 0:02:55.4]} 10... Nd4 {[%clk 0:02:50.9]} 11. Nxd4
{[%clk 0:02:06.6]} 11... exd4 {[%clk 0:02:50.6]} 12. Bg5 {[%clk 0:01:58.7]}
12... Bxd5 {[%clk 0:02:47.9]} 13. exd5 {[%clk 0:01:38.2]} 13... Bf6 {[%clk
0:02:47.4]} 14. Bh6 {[%clk 0:01:32]} 14... Rf7 {[%clk 0:02:44.3]} 15. Qd2 {[%clk
0:01:22.2]} 15... Kh8 {[%clk 0:02:42]} 16. Rae1 {[%clk 0:01:20.5]} 16... Ng8
{[%clk 0:02:41.9]} 17. h4 {[%clk 0:01:00.4]} 17... Nxh6 {[%clk 0:02:33.9]} 18.
Qxh6 {[%clk 0:01:01.3]} 18... Bg7 {[%clk 0:02:33.9]} 19. Qf4 {[%clk 0:00:48.4]}
19... Be5 {[%clk 0:02:31.2]} 20. Rxe5 {[%clk 0:00:43.8]} 20... dxe5 {[%clk
0:02:32.1]} 21. Qxe5+ {[%clk 0:00:44.7]} 21... Qf6 {[%clk 0:02:31.7]} 22. f4
{[%clk 0:00:39.7]} 22... Kg7 {[%clk 0:02:22.9]} 23. Re1 {[%clk 0:00:38.5]} 23...
Rd8 {[%clk 0:02:22.7]} 24. b4 {[%clk 0:00:28.1]} 24... Rdd7 {[%clk 0:02:12.5]}
25. Qxf6+ {[%clk 0:00:19.7]} 25... Kxf6 {[%clk 0:02:06.2]} 26. Re6+ {[%clk
0:00:14.5]} 26... Kg7 {[%clk 0:02:05.2]} 27. c5 {[%clk 0:00:14.9]} 27... Rfe7
{[%clk 0:01:58]} 28. Kf2 {[%clk 0:00:07.5]} 28... Rxe6 {[%clk 0:01:52.6]} 29.
dxe6 {[%clk 0:00:08.4]} 29... Re7 {[%clk 0:01:53.1]} 30. Bd5 {[%clk 0:00:05.8]}
30... c6 {[%clk 0:01:53.4]} 31. Bc4 {[%clk 0:00:05.6]} 31... Kf6 {[%clk
0:01:53.8]} 32. a4 {[%clk 0:00:05.5]} 32... h6 {[%clk 0:01:51.2]} 33. Ke2 {[%clk
0:00:05.6]} 33... g5 {[%clk 0:01:50]} 34. h5 {[%clk 0:00:04.5]} 34... gxf4
{[%clk 0:01:48.4]} 35. gxf4 {[%clk 0:00:05.4]} 35... Rg7 {[%clk 0:01:49.1]} 36.
b5 {[%clk 0:00:04.2]} 36... Ke7 {[%clk 0:01:45.1]} 37. a5 {[%clk 0:00:03.2]}
37... cxb5 {[%clk 0:01:42.4]} 38. Bd5 {[%clk 0:00:03.5]} 38... Kf6 {[%clk
0:01:39.9]} 39. a6 {[%clk 0:00:02.4]} 39... bxa6 {[%clk 0:01:39.4]} 40. c6
{[%clk 0:00:03]} 40... Ke7 {[%clk 0:01:36.7]} 41. c7 {[%clk 0:00:02.8]} 41...
Rg8 {[%clk 0:01:37.1]} 42. Bb7 {[%clk 0:00:03.3]} 42... Kxe6 {[%clk 0:01:35.8]}
43. c8=Q+ {[%clk 0:00:03.9]} 43... Rxc8 {[%clk 0:01:35.9]} 44. Bxc8+ {[%clk
0:00:04.8]} 44... Kf6 {[%clk 0:01:36.3]} 45. Bxa6 {[%clk 0:00:05.4]} 45... b4
{[%clk 0:01:36.9]} 46. Bc4 {[%clk 0:00:04.5]} 46... a5 {[%clk 0:01:36.4]} 47.
Kd2 {[%clk 0:00:05.1]} 47... Ke7 {[%clk 0:01:30.8]} 48. Bb3 {[%clk 0:00:04.3]}
48... Kd6 {[%clk 0:01:31.3]} 49. Ba4 {[%clk 0:00:04.7]} 49... Kc5 {[%clk
0:01:31.8]} 50. Kc2 {[%clk 0:00:05.2]} 50... Kd6 {[%clk 0:01:31.4]} 51. Kb3
{[%clk 0:00:05.6]} 51... Kd5 {[%clk 0:01:31.8]} 52. Bd7 {[%clk 0:00:05.6]} 52...
Kc5 {[%clk 0:01:32.3]} 53. Bxf5 {[%clk 0:00:05.8]} 53... Kd5 {[%clk 0:01:32.7]}
54. Bg6 {[%clk 0:00:04.2]} 1-0

[Event "*** Titled Tuesday Blitz"]
[Site "Chess.com"]
[Date "2021.03.30"]
[Round "2"]
[White "arminmusovic"]
[Black "Smirnov_Pavel"]
[Result "0-1"]
[WhiteElo "2568"]
[BlackElo "2886"]
[TimeControl "180+1"]
[EndTime "10:16:49 PDT"]
[Termination "Smirnov_Pavel won by resignation"]

1. a3 {[%clk 0:03:00.9]} 1... e5 {[%clk 0:02:57.4]} 2. Nc3 {[%clk 0:03:00.9]}
2... Nf6 {[%clk 0:02:55.6]} 3. d4 {[%clk 0:03:01.1]} 3... exd4 {[%clk
0:02:54.8]} 4. Qxd4 {[%clk 0:03:02]} 4... Nc6 {[%clk 0:02:55.1]} 5. Qa4 {[%clk
0:03:02.6]} 5... Be7 {[%clk 0:02:52.4]} 6. Bg5 {[%clk 0:03:02.6]} 6... O-O
{[%clk 0:02:52.4]} 7. e3 {[%clk 0:03:02.3]} 7... d6 {[%clk 0:02:47.9]} 8. Nf3
{[%clk 0:03:01.3]} 8... a6 {[%clk 0:02:48]} 9. Bd3 {[%clk 0:03:00.9]} 9... h6
{[%clk 0:02:41.7]} 10. Qh4 {[%clk 0:02:59.2]} 10... Ne5 {[%clk 0:02:15.6]} 11.
Bxf6 {[%clk 0:02:39.9]} 11... Nxd3+ {[%clk 0:02:03.8]} 12. cxd3 {[%clk
0:02:40.8]} 12... Bxf6 {[%clk 0:02:04.4]} 13. Qg3 {[%clk 0:02:34.6]} 13... d5
{[%clk 0:01:56.9]} 14. O-O {[%clk 0:02:34.1]} 14... c6 {[%clk 0:01:57.4]} 15. e4
{[%clk 0:02:33.4]} 15... dxe4 {[%clk 0:01:53.3]} 16. dxe4 {[%clk 0:02:29.9]}
16... Be6 {[%clk 0:01:53.4]} 17. e5 {[%clk 0:02:27.4]} 17... Be7 {[%clk
0:01:53.3]} 18. Rad1 {[%clk 0:02:21.8]} 18... Qb6 {[%clk 0:01:52.6]} 19. b4
{[%clk 0:02:20.9]} 19... a5 {[%clk 0:01:52.2]} 20. bxa5 {[%clk 0:02:07.7]} 20...
Rxa5 {[%clk 0:01:47.9]} 21. Rb1 {[%clk 0:02:01.2]} 21... Qa6 {[%clk 0:01:38.3]}
22. a4 {[%clk 0:01:58.9]} 22... b5 {[%clk 0:01:31]} 23. axb5 {[%clk 0:01:58]}
23... cxb5 {[%clk 0:01:31.9]} 24. Nd4 {[%clk 0:01:55.1]} 24... b4 {[%clk
0:01:32]} 25. Ne4 {[%clk 0:01:46.9]} 25... Kh8 {[%clk 0:01:28.7]} 26. h3 {[%clk
0:01:45.4]} 26... Ra3 {[%clk 0:01:26.7]} 27. Qf4 {[%clk 0:01:43.7]} 27... b3
{[%clk 0:01:17.2]} 28. Nf5 {[%clk 0:01:41.8]} 28... Bxf5 {[%clk 0:01:03.5]} 29.
Qxf5 {[%clk 0:01:42.7]} 29... Qb5 {[%clk 0:00:53.4]} 30. Rfd1 {[%clk 0:01:39.9]}
30... b2 {[%clk 0:00:50]} 31. Qf4 {[%clk 0:01:25.5]} 31... Qa4 {[%clk
0:00:37.6]} 32. Qf5 {[%clk 0:01:21]} 32... Ra1 {[%clk 0:00:34.9]} 33. Nc3 {[%clk
0:01:10]} 33... Qb3 {[%clk 0:00:31.4]} 34. Rxa1 {[%clk 0:00:35.3]} 34... bxa1=Q
{[%clk 0:00:29.6]} 35. Rxa1 {[%clk 0:00:36.2]} 35... Qxc3 {[%clk 0:00:29.7]} 36.
Rf1 {[%clk 0:00:36.7]} 36... Qc4 {[%clk 0:00:26.6]} 37. f4 {[%clk 0:00:35.3]}
37... Bc5+ {[%clk 0:00:25.1]} 38. Kh1 {[%clk 0:00:35.3]} 38... Qxf1+ {[%clk
0:00:24.8]} 0-1

[Event "*** Titled Tuesday Blitz"]
[Site "Chess.com"]
[Date "2021.03.30"]
[Round "2"]
[White "J36225"]
[Black "seorobert1971"]
[Result "0-1"]
[WhiteElo "2505"]
[BlackElo "2735"]
[TimeControl "180+1"]
[EndTime "10:16:49 PDT"]
[Termination "seorobert1971 won by resignation"]

1. e4 {[%clk 0:03:00.9]} 1... e6 {[%clk 0:03:00.9]} 2. d4 {[%clk 0:02:58.5]}
2... d5 {[%clk 0:03:01.8]} 3. Nd2 {[%clk 0:02:57.2]} 3... c5 {[%clk 0:03:01.4]}
4. exd5 {[%clk 0:02:56.8]} 4... exd5 {[%clk 0:03:01.3]} 5. Ngf3 {[%clk
0:02:56.7]} 5... Nc6 {[%clk 0:03:01.1]} 6. Bb5 {[%clk 0:02:55.9]} 6... Bd6
{[%clk 0:02:59.5]} 7. dxc5 {[%clk 0:02:54.8]} 7... Bxc5 {[%clk 0:02:59.3]} 8.
O-O {[%clk 0:02:54.7]} 8... Ne7 {[%clk 0:02:59.3]} 9. c3 {[%clk 0:02:54.5]} 9...
O-O {[%clk 0:02:58.8]} 10. Nb3 {[%clk 0:02:54.6]} 10... Bb6 {[%clk 0:02:59]} 11.
Bg5 {[%clk 0:02:54]} 11... h6 {[%clk 0:02:56.3]} 12. Bh4 {[%clk 0:02:50.9]}
12... g5 {[%clk 0:02:55.6]} 13. Bg3 {[%clk 0:02:50.6]} 13... Nf5 {[%clk
0:02:55.4]} 14. Bxc6 {[%clk 0:02:44.2]} 14... bxc6 {[%clk 0:02:55]} 15. Nbd4
{[%clk 0:02:43.9]} 15... Nxg3 {[%clk 0:02:52.1]} 16. hxg3 {[%clk 0:02:43.6]}
16... c5 {[%clk 0:02:45.2]} 17. Nc2 {[%clk 0:02:15]} 17... Bb7 {[%clk 0:02:41]}
18. Re1 {[%clk 0:02:09.5]} 18... Qf6 {[%clk 0:02:38.6]} 19. Qd3 {[%clk
0:02:07.1]} 19... Rad8 {[%clk 0:02:34.2]} 20. Rad1 {[%clk 0:02:01.1]} 20... Rd6
{[%clk 0:02:23.9]} 21. Ne3 {[%clk 0:01:57.1]} 21... Rfd8 {[%clk 0:02:19.7]} 22.
Nf5 {[%clk 0:01:42.1]} 22... Re6 {[%clk 0:02:19.3]} 23. Rxe6 {[%clk 0:01:28.3]}
23... fxe6 {[%clk 0:02:16.3]} 24. Ne3 {[%clk 0:01:28]} 24... c4 {[%clk
0:02:13.5]} 25. Qd2 {[%clk 0:01:24.9]} 25... h5 {[%clk 0:01:59.4]} 26. Nc2
{[%clk 0:01:00]} 26... g4 {[%clk 0:01:57.8]} 27. Qg5+ {[%clk 0:00:58.6]} 27...
Qxg5 {[%clk 0:01:48.2]} 28. Nxg5 {[%clk 0:00:59.5]} 28... e5 {[%clk 0:01:43]}
29. Ne3 {[%clk 0:00:49.6]} 29... Rf8 {[%clk 0:01:07.4]} 30. Nxd5 {[%clk
0:00:38.8]} 30... Bxd5 {[%clk 0:00:57]} 31. Rxd5 {[%clk 0:00:38]} 31... Rxf2
{[%clk 0:00:57.5]} 32. Kh2 {[%clk 0:00:32.1]} 32... Rxb2 {[%clk 0:00:56.8]} 33.
Rxe5 {[%clk 0:00:22]} 33... Rxa2 {[%clk 0:00:56.7]} 34. Re7 {[%clk 0:00:21.8]}
34... Ra1 {[%clk 0:00:54.4]} 35. Ne4 {[%clk 0:00:09.2]} 35... Bg1+ {[%clk
0:00:53.4]} 36. Kh1 {[%clk 0:00:09.2]} 36... Bc5+ {[%clk 0:00:53.1]} 0-1

[Event "*** Titled Tuesday Blitz"]
[Site "Chess.com"]
[Date "2021.03.30"]
[Round "2"]
[White "elohunter1999"]
[Black "swimmerchess"]
[Result "0-1"]
[WhiteElo "2543"]
[BlackElo "2828"]
[TimeControl "180+1"]
[EndTime "10:16:50 PDT"]
[Termination "swimmerchess won by resignation"]

1. d4 {[%clk 0:03:00.9]} 1... Nf6 {[%clk 0:03:00.2]} 2. c4 {[%clk 0:03:00.4]}
2... g6 {[%clk 0:02:59.8]} 3. g3 {[%clk 0:02:59.3]} 3... Bg7 {[%clk 0:02:59.9]}
4. Bg2 {[%clk 0:02:59.3]} 4... O-O {[%clk 0:03:00.8]} 5. Nc3 {[%clk 0:02:59.3]}
5... d6 {[%clk 0:03:01.7]} 6. Nf3 {[%clk 0:02:59.2]} 6... Nbd7 {[%clk
0:03:02.6]} 7. O-O {[%clk 0:02:59.3]} 7... e5 {[%clk 0:03:03.3]} 8. e4 {[%clk
0:02:59.6]} 8... exd4 {[%clk 0:03:03.8]} 9. Nxd4 {[%clk 0:02:59.3]} 9... Re8
{[%clk 0:03:04.7]} 10. h3 {[%clk 0:02:42.6]} 10... a6 {[%clk 0:03:03.7]} 11. Qc2
{[%clk 0:02:35.5]} 11... Rb8 {[%clk 0:03:03.1]} 12. b3 {[%clk 0:02:27.6]} 12...
c5 {[%clk 0:03:00]} 13. Nde2 {[%clk 0:02:23.2]} 13... b5 {[%clk 0:03:00.5]} 14.
cxb5 {[%clk 0:02:12.2]} 14... axb5 {[%clk 0:03:01.4]} 15. Bf4 {[%clk 0:02:12.2]}
15... b4 {[%clk 0:02:58.3]} 16. Na4 {[%clk 0:02:05.4]} 16... Ne5 {[%clk
0:02:53.9]} 17. Rad1 {[%clk 0:02:05]} 17... Qe7 {[%clk 0:02:53]} 18. Bg5 {[%clk
0:01:44.6]} 18... Bb7 {[%clk 0:02:48.4]} 19. Nf4 {[%clk 0:01:38.9]} 19... h6
{[%clk 0:02:35.2]} 20. Bxf6 {[%clk 0:01:37.5]} 20... Qxf6 {[%clk 0:02:32.3]} 21.
Nd5 {[%clk 0:01:37.4]} 21... Bxd5 {[%clk 0:02:31.9]} 22. Rxd5 {[%clk 0:01:37.2]}
22... Nc6 {[%clk 0:02:32.1]} 23. Rfd1 {[%clk 0:01:25.5]} 23... Rbd8 {[%clk
0:02:28.2]} 24. Nb6 {[%clk 0:01:24.1]} 24... Nd4 {[%clk 0:02:23.7]} 25. Qd3
{[%clk 0:01:24]} 25... Qe7 {[%clk 0:02:16.8]} 26. Nc4 {[%clk 0:01:21.9]} 26...
h5 {[%clk 0:01:59]} 27. h4 {[%clk 0:01:20.8]} 27... Qe6 {[%clk 0:01:55.9]} 28.
Kh2 {[%clk 0:01:10.1]} 28... Bf6 {[%clk 0:01:36.6]} 29. f4 {[%clk 0:01:00.9]}
29... Bg7 {[%clk 0:01:11.2]} 30. Rd2 {[%clk 0:00:49.4]} 30... Rd7 {[%clk
0:00:53.8]} 31. Rd1 {[%clk 0:00:25]} 31... Ra8 {[%clk 0:00:47.5]} 32. Nb6 {[%clk
0:00:24]} 32... Rxa2 {[%clk 0:00:46.5]} 33. Nxd7 {[%clk 0:00:22.2]} 33... Qxd7
{[%clk 0:00:45.2]} 34. e5 {[%clk 0:00:22.3]} 34... Qg4 {[%clk 0:00:41.8]} 35.
exd6 {[%clk 0:00:20.2]} 35... Nf3+ {[%clk 0:00:41.9]} 36. Kh1 {[%clk 0:00:17]}
36... Qh3+ {[%clk 0:00:42.3]} 0-1

[Event "*** Titled Tuesday Blitz"]
[Site "Chess.com"]
[Date "2021.03.30"]
[Round "2"]
[White "monikarozman"]
[Black "geordie_derraugh"]
[Result "0-1"]
[WhiteElo "2269"]
[BlackElo "2474"]
[TimeControl "180+1"]
[EndTime "10:16:50 PDT"]
[Termination "geordie_derraugh won by resignation"]

1. d4 {[%clk 0:03:00.9]} 1... Nf6 {[%clk 0:02:58]} 2. c4 {[%clk 0:03:00.1]} 2...
e6 {[%clk 0:02:58.4]} 3. Nc3 {[%clk 0:02:59.4]} 3... Bb4 {[%clk 0:02:58.5]} 4.
e3 {[%clk 0:02:57.8]} 4... O-O {[%clk 0:02:57.3]} 5. Ne2 {[%clk 0:02:56.7]} 5...
Re8 {[%clk 0:02:56.9]} 6. a3 {[%clk 0:02:55.4]} 6... Bf8 {[%clk 0:02:56.9]} 7.
Ng3 {[%clk 0:02:48.2]} 7... b6 {[%clk 0:02:52.4]} 8. Bd3 {[%clk 0:02:39.1]} 8...
Bb7 {[%clk 0:02:51.8]} 9. O-O {[%clk 0:02:37.6]} 9... c5 {[%clk 0:02:50.4]} 10.
d5 {[%clk 0:02:03.7]} 10... d6 {[%clk 0:02:35.6]} 11. b3 {[%clk 0:01:39.9]}
11... Nbd7 {[%clk 0:02:25.7]} 12. f4 {[%clk 0:01:32.6]} 12... a6 {[%clk
0:02:06]} 13. Bc2 {[%clk 0:01:08.2]} 13... exd5 {[%clk 0:01:56.2]} 14. Nxd5
{[%clk 0:01:02.9]} 14... Nxd5 {[%clk 0:01:56.1]} 15. cxd5 {[%clk 0:01:03]} 15...
Qf6 {[%clk 0:01:45.6]} 16. Ra2 {[%clk 0:00:54.4]} 16... b5 {[%clk 0:01:28]} 17.
Qd3 {[%clk 0:00:47.9]} 17... g6 {[%clk 0:01:27.2]} 18. Bb2 {[%clk 0:00:45.9]}
18... Qh4 {[%clk 0:01:24.3]} 19. e4 {[%clk 0:00:40.3]} 19... Nb6 {[%clk
0:01:23.1]} 20. Qc3 {[%clk 0:00:16.3]} 20... f6 {[%clk 0:01:23.3]} 21. Qxf6
{[%clk 0:00:15.8]} 21... Qxf6 {[%clk 0:01:23.2]} 22. Bxf6 {[%clk 0:00:16.7]}
22... Bg7 {[%clk 0:01:14.3]} 23. Bxg7 {[%clk 0:00:15.9]} 23... Kxg7 {[%clk
0:01:15.2]} 24. Bb1 {[%clk 0:00:16.1]} 24... c4 {[%clk 0:01:15.1]} 25. bxc4
{[%clk 0:00:15.8]} 25... Nxc4 {[%clk 0:01:15.2]} 26. f5 {[%clk 0:00:15.5]} 26...
Ne3 {[%clk 0:01:00.2]} 27. Rf3 {[%clk 0:00:15]} 27... Ng4 {[%clk 0:00:56.9]} 28.
fxg6 {[%clk 0:00:13.8]} 28... hxg6 {[%clk 0:00:57.8]} 29. h3 {[%clk 0:00:14.1]}
29... Ne5 {[%clk 0:00:57.2]} 30. Rf1 {[%clk 0:00:14]} 30... Re7 {[%clk
0:00:57.3]} 31. Raf2 {[%clk 0:00:13.8]} 31... Rae8 {[%clk 0:00:56.6]} 32. Rf6
{[%clk 0:00:13.6]} 32... Nc4 {[%clk 0:00:55.9]} 33. a4 {[%clk 0:00:11.8]} 33...
bxa4 {[%clk 0:00:55.7]} 34. h4 {[%clk 0:00:11.1]} 34... Nd2 {[%clk 0:00:54.8]}
35. Re1 {[%clk 0:00:09.4]} 35... Kxf6 {[%clk 0:00:54]} 36. Bd3 {[%clk
0:00:08.3]} 36... Rh8 {[%clk 0:00:46.9]} 0-1

[Event "*** Titled Tuesday Blitz"]
[Site "Chess.com"]
[Date "2021.03.30"]
[Round "2"]
[White "picturesquecheck"]
[Black "retropwr"]
[Result "1-0"]
[WhiteElo "2251"]
[BlackElo "2430"]
[TimeControl "180+1"]
[EndTime "10:16:50 PDT"]
[Termination "picturesquecheck won on time"]

1. e4 {[%clk 0:03:00.9]} 1... d6 {[%clk 0:03:00.9]} 2. d4 {[%clk 0:03:00.3]}
2... Nf6 {[%clk 0:03:01.2]} 3. Nc3 {[%clk 0:03:00.3]} 3... e5 {[%clk 0:03:01.2]}
4. Nf3 {[%clk 0:02:59.9]} 4... exd4 {[%clk 0:03:01.1]} 5. Nxd4 {[%clk
0:02:59.9]} 5... Be7 {[%clk 0:03:02]} 6. Rg1 {[%clk 0:02:57.8]} 6... d5 {[%clk
0:02:45.4]} 7. e5 {[%clk 0:02:55.1]} 7... Ng4 {[%clk 0:02:41.3]} 8. f4 {[%clk
0:02:46.7]} 8... Nxh2 {[%clk 0:02:34.4]} 9. Be2 {[%clk 0:02:46.7]} 9... c5
{[%clk 0:02:33]} 10. Nb3 {[%clk 0:02:45.2]} 10... c4 {[%clk 0:02:00.8]} 11. Nd4
{[%clk 0:02:43.6]} 11... Nc6 {[%clk 0:02:00.2]} 12. Be3 {[%clk 0:02:42.9]} 12...
h5 {[%clk 0:01:22.9]} 13. Qd2 {[%clk 0:02:39.2]} 13... Ng4 {[%clk 0:01:19.2]}
14. Bxg4 {[%clk 0:02:20.5]} 14... Bxg4 {[%clk 0:01:18.6]} 15. Nde2 {[%clk
0:01:49]} 15... Be6 {[%clk 0:01:07.1]} 16. O-O-O {[%clk 0:01:45.7]} 16... d4
{[%clk 0:00:45]} 17. Nxd4 {[%clk 0:01:43.9]} 17... Nxd4 {[%clk 0:00:45]} 18.
Bxd4 {[%clk 0:01:43.4]} 18... Qa5 {[%clk 0:00:43.2]} 19. Kb1 {[%clk 0:01:40]}
19... O-O-O {[%clk 0:00:42.1]} 20. Qe3 {[%clk 0:01:22.4]} 20... Kb8 {[%clk
0:00:39.9]} 21. Ne4 {[%clk 0:01:10.5]} 21... Ka8 {[%clk 0:00:28.7]} 22. Bc3
{[%clk 0:01:08.3]} 22... Qc7 {[%clk 0:00:21.6]} 23. Nd6 {[%clk 0:01:01.9]} 23...
Qc6 {[%clk 0:00:17.8]} 24. g3 {[%clk 0:00:56]} 24... Bxd6 {[%clk 0:00:12.8]} 25.
exd6 {[%clk 0:00:53.5]} 25... Rxd6 {[%clk 0:00:12.5]} 26. Bxg7 {[%clk 0:00:48]}
26... Rhd8 {[%clk 0:00:11]} 27. Rxd6 {[%clk 0:00:43]} 27... Rxd6 {[%clk
0:00:07.7]} 28. Be5 {[%clk 0:00:40.6]} 28... Rd5 {[%clk 0:00:06]} 29. c3 {[%clk
0:00:36.7]} 29... Bf5+ {[%clk 0:00:03.9]} 30. Kc1 {[%clk 0:00:31.9]} 1-0

[Event "*** Titled Tuesday Blitz"]
[Site "Chess.com"]
[Date "2021.03.30"]
[Round "2"]
[White "LEGENYA1998"]
[Black "guillembaches"]
[Result "0-1"]
[WhiteElo "2257"]
[BlackElo "2462"]
[TimeControl "180+1"]
[EndTime "10:16:54 PDT"]
[Termination "guillembaches won by resignation"]

1. e4 {[%clk 0:03:00.9]} 1... c5 {[%clk 0:02:59.6]} 2. Nf3 {[%clk 0:03:00.8]}
2... d6 {[%clk 0:03:00.2]} 3. d4 {[%clk 0:03:00]} 3... cxd4 {[%clk 0:03:01.1]}
4. Nxd4 {[%clk 0:03:00.4]} 4... Nf6 {[%clk 0:03:01.3]} 5. Bd3 {[%clk 0:02:59.8]}
5... g6 {[%clk 0:02:54.8]} 6. O-O {[%clk 0:02:49.9]} 6... Bg7 {[%clk 0:02:54.4]}
7. Nb3 {[%clk 0:02:49.1]} 7... Nc6 {[%clk 0:02:53.7]} 8. Nc3 {[%clk 0:02:47.5]}
8... O-O {[%clk 0:02:52.5]} 9. h3 {[%clk 0:02:46.9]} 9... a6 {[%clk 0:02:49.5]}
10. a4 {[%clk 0:02:45.8]} 10... Be6 {[%clk 0:02:40]} 11. Be3 {[%clk 0:02:45.3]}
11... Ne5 {[%clk 0:02:37.8]} 12. f4 {[%clk 0:02:39.1]} 12... Nc4 {[%clk
0:02:34.4]} 13. Bxc4 {[%clk 0:02:34]} 13... Bxc4 {[%clk 0:02:35.3]} 14. Re1
{[%clk 0:02:33.4]} 14... b5 {[%clk 0:02:27.6]} 15. axb5 {[%clk 0:02:29.3]} 15...
axb5 {[%clk 0:02:28.5]} 16. Bd4 {[%clk 0:02:15.5]} 16... Rxa1 {[%clk 0:02:18.3]}
17. Nxa1 {[%clk 0:02:14.1]} 17... Qc7 {[%clk 0:01:46.5]} 18. Nb3 {[%clk
0:02:05.3]} 18... b4 {[%clk 0:01:32]} 19. Nd5 {[%clk 0:01:55.9]} 19... Nxd5
{[%clk 0:01:27.8]} 20. Bxg7 {[%clk 0:01:43.4]} 20... Kxg7 {[%clk 0:01:27.5]} 21.
exd5 {[%clk 0:01:43.7]} 21... Bxb3 {[%clk 0:01:21.8]} 22. Qd4+ {[%clk 0:01:40]}
22... Kg8 {[%clk 0:01:18.6]} 23. cxb3 {[%clk 0:01:40.1]} 23... Rb8 {[%clk
0:01:09.9]} 24. f5 {[%clk 0:01:35.1]} 24... Rb5 {[%clk 0:01:06]} 25. f6 {[%clk
0:01:30.8]} 25... exf6 {[%clk 0:00:59.5]} 26. Qxf6 {[%clk 0:01:29]} 26... Rb8
{[%clk 0:00:48]} 27. Re7 {[%clk 0:01:27.7]} 27... Qc5+ {[%clk 0:00:48.2]} 28.
Kh2 {[%clk 0:01:27]} 28... Qxd5 {[%clk 0:00:48.5]} 29. Rd7 {[%clk 0:01:23.1]}
29... Qe5+ {[%clk 0:00:45.5]} 30. Qxe5 {[%clk 0:01:22.1]} 30... dxe5 {[%clk
0:00:46.4]} 31. Kg3 {[%clk 0:01:22.4]} 31... Rb5 {[%clk 0:00:45]} 32. Kf3 {[%clk
0:01:21.8]} 32... Kg7 {[%clk 0:00:45.2]} 33. Ke4 {[%clk 0:01:21.7]} 33... Kf6
{[%clk 0:00:45]} 34. g4 {[%clk 0:01:19.3]} 34... Ke6 {[%clk 0:00:44.7]} 35. Rc7
{[%clk 0:01:18.8]} 35... f5+ {[%clk 0:00:42.6]} 36. Ke3 {[%clk 0:01:18.2]} 36...
h5 {[%clk 0:00:40.3]} 37. gxh5 {[%clk 0:01:17.9]} 37... gxh5 {[%clk 0:00:40.3]}
38. Rh7 {[%clk 0:01:18.5]} 38... Kd5 {[%clk 0:00:36.1]} 39. Rxh5 {[%clk
0:01:18.3]} 39... f4+ {[%clk 0:00:34.5]} 40. Kd3 {[%clk 0:01:16.3]} 40... Rb8
{[%clk 0:00:32.5]} 41. h4 {[%clk 0:01:13.1]} 41... Rg8 {[%clk 0:00:32.1]} 42.
Rh7 {[%clk 0:01:10]} 42... e4+ {[%clk 0:00:31.6]} 43. Kc2 {[%clk 0:01:09]} 43...
Rg2+ {[%clk 0:00:31.9]} 44. Kc1 {[%clk 0:01:08.6]} 44... f3 {[%clk 0:00:31.8]}
45. Kd1 {[%clk 0:01:04.5]} 45... e3 {[%clk 0:00:30.7]} 46. Re7 {[%clk
0:00:54.4]} 46... Rg1+ {[%clk 0:00:27.7]} 47. Kc2 {[%clk 0:00:54.3]} 47... f2
{[%clk 0:00:28]} 48. Rf7 {[%clk 0:00:52.7]} 48... f1=Q {[%clk 0:00:28]} 49. Rxf1
{[%clk 0:00:52.2]} 49... Rxf1 {[%clk 0:00:28.5]} 50. Kd3 {[%clk 0:00:52]} 50...
Rh1 {[%clk 0:00:28.5]} 0-1